lending/lending_fUSD_20240131
["ID","MTS","AMOUNT","RATE_DAILY","PERIOD"]
[313043381,1706682635092,-150.77,0.00036285,2]
[313043382,1706682635101,-151.48,0.00036293,5]
[313043383,1706682635111,-167.94,0.0003642,2]
[313043384,1706682635120,-151.0131,0.00036448,6]
[313043385,1706682635129,-150.77,0.00036589,2]
[313043386,1706682635139,-151.0131,0.00036748,6]
[313043387,1706682635148,-150.77,0.00036894,2]
[313043388,1706682635157,-1000.0,0.000369,2]
[313043389,1706682635166,-152.49102744,0.00036936,2]
[313043390,1706682635175,-16576.29713723,0.00037,2]
[313043391,1706682635185,-151.0131,0.00037148,6]
[313043392,1706682635194,-151.0131,0.00037448,6]
[313043393,1706682635203,-6288.63868049,0.000375,2]
[313043394,1706682635213,-152.97,0.000377,3]
[313043395,1706682635222,-152.97,0.000377,3]
[313043396,1706682635233,-152.97,0.000377,3]
[313043397,1706682635242,-152.97,0.000377,3]
[313043398,1706682635251,-152.97,0.000377,3]
[313043399,1706682635261,-152.97,0.000377,3]
[313043400,1706682635270,-152.97,0.000377,3]
[313043401,1706682635279,-152.97,0.000377,3]
[313043402,1706682635289,-151.0131,0.00037748,8]
[313043403,1706682635298,-376.82,0.00037758,2]
[313043404,1706682635307,-152.0,0.00037762,3]
[313043405,1706682635316,-556.69384853,0.00037828,4]
[313043406,1706682635326,-150.68,0.00038082,2]
[313043407,1706682635335,-150.0,0.00038082,2]
[313043408,1706682635344,-150.0,0.00038082,2]
[313043409,1706682635353,-150.0,0.00038082,2]
[313043410,1706682635365,-150.0,0.00038082,2]
[313043411,1706682635375,-150.0,0.00038082,2]
[313043412,1706682635385,-150.0,0.00038082,2]
[313043413,1706682635394,-150.0,0.00038082,2]
[313043414,1706682635404,-150.0,0.00038082,2]
[313043415,1706682635414,-150.0,0.00038082,2]
[313043416,1706682635424,-150.0,0.00038082,2]
[313043417,1706682635433,-150.0,0.00038082,2]
[313043418,1706682635445,-150.0,0.00038082,2]
[313043419,1706682635456,-150.0,0.00038082,2]
[313043420,1706682635465,-150.0,0.00038082,2]
[313043421,1706682635474,-150.0,0.00038082,2]
[313043422,1706682635484,-150.0,0.00038082,2]
[313043423,1706682635493,-151.0131,0.00038148,8]
[313043424,1706682635502,-150.0,0.00038178,2]
[313043425,1706682635512,-1844.94757581,0.000384,2]
[313043426,1706682635520,-151.0131,0.00038448,8]
[313043427,1706682635529,-452.13365197,0.00038459,8]
[313043428,1706682635538,-10968.30413742,0.00038468,2]
[313043429,1706682638249,-34068.17326557,0.00038468,2]
[313043430,1706682638308,-10377.37185646,0.00038468,2]
[313043431,1706682638441,-404.64145571,0.00038468,2]
[313043967,1706682644596,-46701.56568484,0.00038468,2]
[313043968,1706682644605,-846.04588557,0.00038559,10]
[313043969,1706682644614,-500.0,0.00038568,2]
[313043970,1706682644623,-200.0,0.00038568,7]
[313043971,1706682644632,-500.0,0.00038569,2]
[313043972,1706682644642,-200.0,0.00038569,7]
[313043973,1706682644651,-800.0,0.00038569,8]
[313043974,1706682644661,-500.0,0.000387,2]
[313043975,1706682644670,-151.0131,0.00038748,8]
[313043976,1706682644679,-544.20947,0.0003877,2]
[313043977,1706682644688,-596.0,0.00038774,2]
[313043978,1706682644699,-1692.09177114,0.0003879,10]
[313043979,1706682644709,-358.89301461,0.00038798,2]
[313043981,1706682644718,-17558.16047558,0.000388,4]
[313043983,1706682644727,-2004.8,0.000388,2]
[313043985,1706682644737,-231.0,0.0003887,7]
[313043986,1706682644755,-2105.27084303,0.00038879,4]
[313043987,1706682644767,-6087.99143494,0.0003888,2]
[313043988,1706682644777,-6087.99143485,0.0003888,2]
[313043989,1706682644787,-6087.99143485,0.0003888,2]
[313043990,1706682644796,-1000.0,0.000389,2]
[313043991,1706682644806,-3384.18354228,0.0003897,10]
[313043992,1706682644816,-19425.46823614,0.0003898,10]
[313043993,1706682644833,-2151.93345604,0.0003898,10]
[313043994,1706682646414,-408.1979072,0.0003898,10]
[313043995,1706682646473,-357.50541996,0.0003898,10]
[313043996,1706682646530,-274.82672705,0.0003898,10]
[313043997,1706682646541,-256.93499652,0.0003898,10]
[313043998,1706682646553,-2551.39094543,0.0003898,10]
[313044009,1706683630106,-500.0,0.00035165,4]
[313044010,1706683630126,-155.0,0.00035166,2]
[313044011,1706683630147,-1334.0388,0.00035167,120]
[313044012,1706683630168,-164.24,0.00035273,2]
[313044013,1706683630190,-151.0131,0.00035448,4]
[313044014,1706683630211,-2677.63910772,0.00035647,4]
[313044031,1706683831398,-399.42347755,0.000293,2]
[313044032,1706683831456,-1574.01948662,0.000293,2]
[313044033,1706683831515,-314.55703583,0.000293,2]
[313044034,1706683831525,-155.0,0.00034566,2]
[313044035,1706683831534,-161.74,0.00034567,2]
[313044036,1706683831543,-556.69384853,0.00034577,4]
[313044037,1706683831553,-500.0,0.00035646,4]
[313044038,1706683831562,-279.93962754,0.00035646,4]
[313044039,1706683831573,-424.54009533,0.00035646,4]
[313044040,1706683831583,-1039.8369864,0.00035646,4]
[313044041,1706683831595,-300.0,0.00035646,4]
[313044042,1706683831616,-7.19150875,0.00035646,4]
[313044043,1706683831626,-615.40120919,0.00035646,4]
[313044044,1706683831638,-266.569,0.00035646,4]
[313044045,1706683831652,-258.82614046,0.00035646,4]
[313044046,1706683831677,-461.57652245,0.00035646,4]
[313044047,1706683831688,-1033.7,0.00035646,4]
[313044049,1706683831699,-650.61043236,0.00035646,4]
[313044051,1706683831710,-1713.3430841,0.00035646,4]
[313044059,1706683837383,-4577.5,0.00035646,4]
[313044060,1706683837439,-987.45144163,0.00035646,4]
[313044061,1706683837449,-150.0,0.00035646,2]
[313044062,1706683837458,-240.79896533,0.00035647,4]
[313044063,1706683837551,-19848.36689806,0.00035647,4]
[313044064,1706683837561,-25551.57994727,0.00035647,4]
[313044065,1706683837571,-500.0,0.00035647,2]
[313044066,1706683837580,-688.71,0.00035647,2]
[313044067,1706683837590,-9988.81,0.00035647,2]
[313044068,1706683837599,-2023.71,0.00035647,2]
[313044069,1706683837609,-57492.00228259,0.00035648,2]
[313044070,1706683837621,-3041.0993593,0.00035648,2]
[313044071,1706683837633,-609.47680672,0.00035648,2]
[313044072,1706683837821,-16315.64505139,0.00035648,2]
[313044073,1706683837831,-165.67169307,0.00035648,2]
[313044074,1706683837841,-151.02,0.0003574,5]
[313044076,1706683837851,-150.74,0.00035743,5]
[313044078,1706683837860,-151.0131,0.00035748,6]
[313044080,1706683837870,-151.0131,0.00036148,6]
[313044082,1706683837879,-482.56,0.00036286,2]
[313044084,1706683837888,-2000.0,0.00036368,2]
[313044086,1706683837897,-1950.00597525,0.00036368,34]
[313044093,1706683837934,-6897.63402475,0.00036368,34]
[313044095,1706683837943,-167.94,0.00036386,2]
[313044097,1706683837953,-170.87,0.00036386,2]
[313044099,1706683837962,-571.31,0.00036386,2]
[313044101,1706683837972,-499.99,0.00036434,2]
[313044103,1706683837982,-619.88,0.00036434,2]
[313044105,1706683837991,-2234.0122612,0.00036446,2]
[313044325,1706683840012,-301.92261199,0.00036446,2]
[313044332,1706683840062,-3234.19512681,0.00036446,2]
[313044334,1706683840072,-151.0131,0.00036448,6]
[313044336,1706683840082,-1000.0,0.00036529,2]
[313044338,1706683840092,-151.0131,0.00036748,6]
[313044341,1706683840101,-150.0,0.00036848,2]
[313044343,1706683840110,-7458.51,0.00036853,2]
[313044345,1706683840119,-6122.34483177,0.00036912,2]
[313044347,1706683840132,-865.44923091,0.00036912,2]
[313044349,1706683840144,-322.87653265,0.00036912,2]
[313044351,1706683840155,-280.69400187,0.00036912,2]
[313044355,1706683840175,-8138.2990114,0.00036912,2]
[313044359,1706683840893,-669.96607047,0.00036912,2]
[313044385,1706683842555,-23900.0,0.00036477,2]
[313044386,1706683842566,-555.23262093,0.00036912,2]
[313044387,1706683842576,-250.0,0.00036964,2]
[313044388,1706683842586,-166.69,0.00036969,2]
[313044390,1706683842595,-182.85,0.00036996,2]
[313044391,1706683842605,-2414.71501223,0.00037,3]
[313044392,1706683842615,-152.49102744,0.0003703,2]
[313044393,1706683842625,-854.23,0.00037037,2]
[313044394,1706683842634,-1136.92,0.0003706,2]
[313044395,1706683842644,-156.62,0.00037083,2]
[313044396,1706683842657,-151.57,0.00037108,2]
[313044397,1706683842667,-151.0131,0.00037148,6]
[313044398,1706683842676,-200.0,0.00037218,2]
[313044399,1706683842686,-200.0,0.00037379,2]
[313044400,1706683842696,-151.0131,0.00037448,8]
[313044401,1706683842705,-880.2585,0.00037625,2]
[313044402,1706683842715,-152.97,0.000377,3]
[313044403,1706683842725,-152.97,0.000377,3]
[313044404,1706683842735,-152.97,0.000377,3]
[313044405,1706683842745,-152.97,0.000377,3]
[313044406,1706683842755,-152.97,0.000377,3]
[313044407,1706683842765,-152.97,0.000377,3]
[313044408,1706683842777,-152.97,0.000377,3]
[313044409,1706683842786,-152.97,0.000377,3]
[313044410,1706683842796,-151.0131,0.00037748,8]
[313044411,1706683842806,-151.57,0.00037753,2]
[313044412,1706683842817,-171.79,0.00037878,2]
[313044413,1706683842826,-571.31,0.00038029,2]
[313044414,1706683842836,-151.0131,0.00038148,8]
[313044415,1706683842846,-151.57,0.00038397,2]
[313044416,1706683842856,-1844.94757581,0.000384,2]
[313044417,1706683842865,-151.0131,0.00038448,8]
[313044418,1706683842874,-5143.515,0.000385,25]
[313044419,1706683842884,-200.0,0.00038579,7]
[313044420,1706683842893,-800.0,0.00038588,8]
[313044421,1706683842902,-800.0,0.00038589,8]
[313044422,1706683842912,-155.91971542,0.00038608,4]
[313044423,1706683842921,-151.0131,0.00038748,8]
[313044424,1706683842931,-7789.4931161,0.000388,4]
[313044425,1706683842961,-9768.66735948,0.000388,4]
[313044426,1706683842971,-1399.0219,0.000388,2]
[313044427,1706683842980,-1000.0,0.000388,2]
[313044428,1706683842990,-1000.0,0.000389,2]
[313044429,1706683843003,-9504.18427361,0.000389,2]
[313044430,1706683843041,-10508.3968,0.000389,2]
[313044432,1706683845559,-155.0,0.00036911,2]
[313044433,1706683845568,-499.99,0.00037108,2]
[313044434,1706683845577,-2239.89,0.00037379,2]
[313044435,1706683845586,-69422.38372639,0.000389,2]
[313044436,1706683845596,-2005.04,0.000389,2]
[313044437,1706683845606,-453.50789,0.000389,2]
[313044438,1706683845615,-8063.10731661,0.0003898,10]
[313044439,1706683845624,-282.76389903,0.0003898,2]
[313044440,1706683845634,-201.58686684,0.00038998,2]
[313044441,1706683845643,-500.0,0.00038998,30]
[313044442,1706683845653,-1279.82035899,0.00038998,4]
[313044443,1706683845662,-251.76781876,0.00038998,4]
[313044444,1706683845671,-3335.34045273,0.00038999,4]
[313044445,1706683845681,-491.29664348,0.00039,4]
[313044446,1706683845690,-420.9339251,0.00039,4]
[313044447,1706683845699,-1432.47857544,0.00039,2]
[313044448,1706683845708,-621.9570935,0.00039,4]
[313044449,1706683845717,-17900.040198,0.00039,2]
[313044452,1706684796744,-2100.0,0.00023,2]
[313044453,1706684829107,-7795.89958471,0.00023,2]
[313044454,1706684864112,-77400.0,0.00023,2]
[313044473,1706685037613,-500.0,0.00022895,2]
[313044474,1706685037622,-691.30186984,0.00022895,2]
[313044475,1706685037632,-155.0,0.00022896,2]
[313044476,1706685037641,-155.0,0.00022897,2]
[313044477,1706685037650,-300.0,0.00022898,2]
[313044478,1706685037659,-452.13365197,0.000229,2]
[313044479,1706685037668,-10529.35130976,0.00022995,2]
[313044480,1706685037677,-150.0,0.00022996,2]
[313044481,1706685037686,-13041.77329193,0.00022998,2]
[313044482,1706685037696,-155.56432072,0.00022998,2]
[313044483,1706685037705,-166.04295219,0.00022998,2]
[313044484,1706685037714,-1144.14179252,0.00022998,2]
[313044485,1706685037724,-232.54654319,0.00022998,2]
[313044486,1706685037733,-3742.53803182,0.00022998,2]
[313044487,1706685037745,-6848.03262901,0.00022998,2]
[313044488,1706685037764,-281.17998795,0.00022998,2]
[313044489,1706685037776,-1226.24913404,0.00022998,2]
[313044490,1706685037789,-49.67609487,0.00022998,2]
[313044491,1706685037799,-1259.58690738,0.00022999,2]
[313044492,1706685037809,-11000.85859074,0.00022999,2]
[313044493,1706685037819,-4281.30291457,0.00022999,2]
[313044494,1706685037829,-1052.66597639,0.00022999,2]
[313044495,1706685037839,-366.28115242,0.00022999,2]
[313044496,1706685037849,-1857.83876901,0.00022999,2]
[313044497,1706685037859,-1000.0,0.00022999,2]
[313044498,1706685037869,-16747.82302262,0.00023,2]
[313044499,1706685038076,-424.88308538,0.00023,2]
[313044502,1706685040254,-745.7961023,0.00023,2]
[313044503,1706685040307,-1293.85122542,0.00023,2]
[313044504,1706685040958,-238454.81646196,0.00023,2]
[313044505,1706685041067,-277.24778743,0.00023,2]
[313044518,1706685043326,-2028.13425324,0.00023,2]
[313044519,1706685043570,-16284.58963616,0.00023,2]
[313044520,1706685043697,-3915.39565918,0.00023,2]
[313044521,1706685043725,-111588.78367018,0.00023,2]
[313044522,1706685043735,-3384.87796955,0.00023,2]
[313044523,1706685043746,-457.14295137,0.00023,2]
[313044524,1706685043769,-315.82711764,0.00023,2]
[313044528,1706685045717,-2469.52919998,0.00023,2]
[313044529,1706685045793,-512.40927697,0.00023,2]
[313044530,1706685045869,-33861.03876972,0.00023,2]
[313044531,1706685045880,-614.02826075,0.00023,2]
[313044532,1706685045889,-149.67704328,0.00023,2]
[313044535,1706685046016,-2579.69927555,0.00023,2]
[313044536,1706685046025,-810.92670379,0.00023,2]
[313044538,1706685046034,-452.13365193,0.00026659,3]
[313044539,1706685046043,-2173.0,0.000293,2]
[313044540,1706685046052,-5887.0,0.000293,2]
[313044541,1706685046061,-155.0,0.0003,2]
[313044542,1706685046071,-452.13365193,0.00030419,5]
[313044543,1706685046080,-274.77,0.00032719,2]
[313044544,1706685046089,-452.13365193,0.00034178,6]
[313044545,1706685046098,-542.49914862,0.000349,2]
[313044546,1706685046107,-250.0,0.00035501,2]
[313044547,1706685046116,-8336.75040207,0.00035647,4]
[313044548,1706685046421,-644.41986421,0.00035647,4]
[313044549,1706685046433,-330.5444031,0.00035647,4]
[313044550,1706685046444,-497.5,0.00035647,4]
[313044551,1706685046455,-719.8,0.00035647,4]
[313044557,1706686051109,-489.54660479,0.00027278,2]
[313044558,1706686051128,-500.0,0.00027279,2]
[313044559,1706686051147,-630.55738904,0.0002728,2]
[313044560,1706686051166,-496.76464498,0.00027284,2]
[313044561,1706686051186,-164.8,0.00027297,2]
[313044562,1706686051206,-155.0,0.0003,2]
[313044563,1706686051225,-159.08,0.00031128,2]
[313044564,1706686051244,-250.0,0.00033046,2]
[313044565,1706686051263,-938.96,0.00033089,120]
[313044566,1706686051281,-156.37,0.0003311,2]
[313044567,1706686051299,-508.46,0.00033176,2]
[313044568,1706686051319,-164.06960714,0.00033217,2]
[313044569,1706686051337,-1131.43074769,0.00033258,2]
[313044570,1706686154092,-164.12,0.00026402,2]
[313044571,1706686154111,-750.0,0.00033103,2]
[313044572,1706686154132,-200.0,0.00033131,2]
[313044573,1706686154151,-1852.42,0.00033203,2]
[313044574,1706686154170,-500.0,0.00033257,4]
[313044575,1706686154205,-155.0,0.00033257,2]
[313044576,1706686154224,-1673.06925231,0.00033258,2]
[313044577,1706686154243,-500.0,0.00033258,2]
[313044578,1706686154263,-764.07,0.0003327,2]
[313044579,1706686154282,-467.34,0.00033317,2]
[313044580,1706686154301,-170.87,0.00033394,2]
[313044581,1706686154321,-154.85,0.00033396,2]
[313044582,1706686154342,-400.0,0.00033433,3]
[313044583,1706686154362,-2625.63260415,0.00033434,34]
[313044584,1706686223267,176.93,0.00016712,2]
[313044590,1706686231762,-289.87917333,0.00033433,4]
[313044592,1706686231819,-210.12082667,0.00033433,4]
[313044593,1706686231828,-106.51622658,0.00033434,34]
[313044594,1706686231876,-4652.75229968,0.00033434,34]
[313044598,1706686237838,-208.0,0.00033,2]
[313044599,1706686237852,-250.0,0.00033397,111]
[313044600,1706686237866,-2615.09886959,0.00033434,34]
[313044601,1706686237880,-271.03353904,0.00033434,4]
[313044602,1706686237896,-500.0,0.00033434,2]
[313044603,1706686237910,-2000.0,0.00033463,2]
[313044604,1706686237926,-199.35,0.00033477,120]
[313044605,1706686237938,-5667.92,0.00033478,2]
[313044606,1706686237953,-499.99,0.00033478,2]
[313044607,1706686237967,-1366.63,0.00033491,2]
[313044608,1706686237980,-23900.0,0.00033494,2]
[313044609,1706686237996,-2705.0,0.00033567,2]
[313044610,1706686238009,-150.0,0.00033578,2]
[313044611,1706686238021,-1042.48,0.00033608,2]
[313044612,1706686238036,-1320.19,0.00033629,2]
[313044613,1706686238051,-154.85,0.00033644,2]
[313044614,1706686238064,-6679.88111164,0.00033651,2]
[313044615,1706686238077,-800.0,0.00033843,2]
[313044616,1706686238090,-154.85,0.00033893,2]
[313044617,1706686238104,-515.28,0.00033955,2]
[313044618,1706686238118,-154.85,0.00034142,2]
[313044619,1706686238134,-155.0,0.00034389,2]
[313044620,1706686238148,-154.85,0.0003439,2]
[313044621,1706686238160,-711.85,0.00034568,2]
[313044622,1706686238170,-154.85,0.00034639,2]
[313044623,1706686238183,-154.85,0.00034887,2]
[313044624,1706686238197,-900.0,0.000349,12]
[313044625,1706686238210,-764.07,0.00034914,2]
[313044626,1706686238221,-333.30722941,0.0003497,7]
[313044627,1706686238232,-168.34902695,0.00034995,2]
[313044628,1706686238246,-632.46168054,0.00034996,4]
[313044629,1706686238260,-579.14284244,0.00034996,4]
[313044630,1706686238272,-155.51528486,0.00034996,4]
[313044631,1706686238284,-155.22327242,0.00034996,4]
[313044632,1706686238295,-1825.37998047,0.00034996,4]
[313044633,1706686238307,-376.04252086,0.00034997,4]
[313044634,1706686238319,-65283.02177143,0.00034998,2]
[313044635,1706686238334,-977.46048853,0.00034998,2]
[313044636,1706686238769,-3395.54794444,0.00034998,2]
[313044637,1706686238833,-419.6410628,0.00034998,2]
[313044649,1706686240340,-247727.4037317,0.00034998,2]
[313044650,1706686240630,-2203.4,0.00034998,2]
[313044651,1706686240654,-410.44886537,0.00034998,2]
[313044652,1706686240693,-1003.471,0.00034998,2]
[313044653,1706686240704,-470.2,0.00034998,2]
[313044654,1706686240716,-548.1,0.00034998,2]
[313044655,1706686240812,-347.96609508,0.00034998,2]
[313044656,1706686240824,-500.0,0.00034998,2]
[313044657,1706686240852,-6339.54121197,0.00034998,2]
[313044658,1706686240863,-2397.11064171,0.00034998,2]
[313044659,1706686240918,-4222.43376535,0.00034998,2]
[313044660,1706686241168,-345111.94595731,0.00034998,2]
[313044661,1706686241178,-154.85,0.00035136,2]
[313044662,1706686241187,-150.0,0.00035208,2]
[313044663,1706686241197,-150.0,0.0003529,2]
[313044664,1706686241206,-377.92324,0.00035501,2]
[313044665,1706686241215,-231.86,0.00035616,2]
[313044666,1706686241224,-2005.96657785,0.00035647,4]
[313044667,1706686241234,-167.94,0.00036023,2]
[313044668,1706686241243,-1000.0,0.000362,2]
[313044669,1706686241252,-2524.35656193,0.00036382,2]
[313044670,1706686241261,-164.06960713,0.00036554,2]
[313044671,1706686241270,-764.07,0.00036557,2]
[313044672,1706686241280,-333.30722937,0.0003681,8]
[313044673,1706686241290,-176.76,0.000369,2]
[313044674,1706686241299,-271.80091404,0.00036994,5]
[313044675,1706686241308,-150.3,0.00036995,5]
[313044676,1706686241318,-560.0,0.00037,7]
[313044677,1706686241328,-152.49102744,0.00037049,2]
[313044678,1706686241338,-200.0,0.00037272,2]
[313044679,1706686241347,-352.71,0.00037448,2]
[313044680,1706686241358,-778.51682041,0.00037699,2]
[313044681,1706686241367,-152.99,0.000377,3]
[313044682,1706686241376,-152.99,0.000377,3]
[313044683,1706686241385,-152.99,0.000377,3]
[313044684,1706686241394,-152.99,0.000377,3]
[313044685,1706686241403,-152.99,0.000377,3]
[313044686,1706686241413,-152.99,0.000377,3]
[313044687,1706686241422,-152.99,0.000377,3]
[313044688,1706686241431,-508.49927955,0.00037797,2]
[313044690,1706686241440,-2925.24589454,0.00037799,2]
[313044692,1706686241460,-457.91829711,0.00037799,2]
[313044693,1706686241472,-825.08521872,0.00037799,2]
[313044694,1706686241483,-666.1734839,0.00037799,2]
[313044695,1706686241502,-1048.582763,0.00037799,2]
[313044696,1706686241514,-500.4773228,0.00037799,2]
[313044697,1706686241525,-2710.38515923,0.00037799,2]
[313044709,1706686244158,-3635.9718607,0.00037799,2]
[313044710,1706686244168,-2314.7722,0.00037799,2]
[313044711,1706686244178,-500.0,0.00037799,2]
[313044712,1706686244188,-154.97617789,0.00037841,2]
[313044713,1706686244197,-177.77473452,0.00037841,11]
[313044714,1706686244206,-163.41940674,0.00037841,11]
[313044715,1706686244216,-156.00479395,0.00037897,4]
[313044716,1706686244225,-3145.34192243,0.00037897,4]
[313044717,1706686244235,-293.04976157,0.00037897,4]
[313044718,1706686244246,-156.79014453,0.00037897,4]
[313044719,1706686244256,-24374.22356804,0.00037897,4]
[313044720,1706686244265,-158.68038254,0.00037897,4]
[313044721,1706686244274,-400.0,0.00037897,2]
[313044722,1706686244284,-1055.88684078,0.00037897,4]
[313044723,1706686244293,-1060.86936771,0.00037897,4]
[313044724,1706686244303,-481.080241,0.00037897,4]
[313044725,1706686244313,-381.72532457,0.00037897,4]
[313044726,1706686244323,-1555.6988696,0.00037897,2]
[313044727,1706686244332,-428.94813868,0.00037897,2]
[313044728,1706686244341,-16576.29713723,0.00037897,3]
[313044729,1706686244350,-204.77506964,0.00037898,4]
[313044730,1706686244360,-4636.68729824,0.00037898,4]
[313044731,1706686244370,-163.98940914,0.00037898,4]
[313044732,1706686244379,-236.42904119,0.00037898,4]
[313044733,1706686244389,-156.03034355,0.00037898,4]
[313044734,1706686244398,-263.66577365,0.00037898,4]
[313044735,1706686244408,-279.94615861,0.00037898,4]
[313044736,1706686244417,-307.61888144,0.00037898,2]
[313044737,1706686244426,-248.81396005,0.00037898,4]
[313044738,1706686244435,-391.00097642,0.00037898,4]
[313044739,1706686244444,-156.15215296,0.00037898,4]
[313044740,1706686244454,-340.87203378,0.00037898,4]
[313044741,1706686244464,-267.93667831,0.00037898,4]
[313044742,1706686244474,-1117.33300328,0.00037898,2]
[313044743,1706686244484,-156.14677915,0.00037898,4]
[313044744,1706686244495,-1000.0,0.00037898,4]
[313044745,1706686244506,-527.12181094,0.00037899,4]
[313044747,1706686244515,-216.1794411,0.00037899,4]
[313044749,1706686244525,-10443.22553039,0.00037899,4]
[313044751,1706686244537,-512.0,0.000379,5]
[313044753,1706686244547,-114124.05951044,0.000379,3]
[313044757,1706686244571,-36147.30255196,0.000379,3]
[313044759,1706686244585,-2026.56348,0.000379,3]
[313044766,1706686244741,-1500.0,0.000379,3]
[313044767,1706686244761,-3056.2569459,0.000379,3]
[313044768,1706686244773,-5018.26181885,0.000379,3]
[313044769,1706686244785,-1534.03453974,0.000379,3]
[313044770,1706686244798,-4185.45380288,0.000379,3]
[313044771,1706686245985,-1154.62306119,0.000379,3]
[313044772,1706686246005,-299.975,0.000379,3]
[313044773,1706686246017,-4371.53791403,0.000379,3]
[313044774,1706686246028,-1033.40313034,0.000379,3]
[313044775,1706686246039,-1000.0,0.000379,3]
[313044776,1706686246050,-1000.0,0.000379,3]
[313044777,1706686246077,-2609.23511465,0.000379,3]
[313044778,1706686246175,-545.07032586,0.000379,3]
[313044782,1706687252298,-500.0,0.00034379,4]
[313044783,1706687252319,-155.0,0.00034387,2]
[313044784,1706687252340,-3530.08230917,0.00034388,2]
[313044785,1706687252361,-158.19,0.00034389,2]
[313044786,1706687252382,-164.06960713,0.00035251,2]
[313044787,1706687252403,-151.0131,0.00035448,4]
[313044788,1706687252425,-151.0131,0.00035748,4]
[313044789,1706687252446,-151.0131,0.00036148,4]
[313044790,1706687252467,-150.0,0.00036256,2]
[313044791,1706687252489,-23900.0,0.00036288,2]
[313044792,1706687252509,-233.67,0.00036288,2]
[313044793,1706687252532,-575.11,0.00036327,2]
[313044794,1706687252554,-150.0,0.00036342,2]
[313044795,1706687252574,-250.0,0.00036375,2]
[313044796,1706687252594,-2000.0,0.00036423,2]
[313044797,1706687252616,-151.0131,0.00036448,4]
[313044798,1706687252638,-323.0,0.00036457,3]
[313044799,1706687252659,-880.0,0.00036632,2]
[313044800,1706687252681,-169.82,0.00036655,2]
[313044801,1706687252704,-151.0131,0.00036748,6]
[313044802,1706687252724,-5000.0,0.00037,15]
[313044803,1706687252745,-303.0,0.00037,7]
[313044804,1706687252770,-151.0131,0.00037148,6]
[313044805,1706687252790,-152.0,0.0003731,3]
[313044806,1706687252811,-151.0131,0.00037348,6]
[313044807,1706687252832,-151.0131,0.00037448,6]
[313044808,1706687252861,-151.0131,0.00037548,6]
[313044809,1706687252884,-151.0131,0.00037648,6]
[313044810,1706687252907,-153.01,0.000377,3]
[313044811,1706687252931,-153.01,0.000377,3]
[313044812,1706687252955,-153.01,0.000377,3]
[313044813,1706687252978,-153.01,0.000377,3]
[313044814,1706687253000,-153.01,0.000377,3]
[313044815,1706687253023,-151.0131,0.00037748,6]
[313044816,1706687253048,-996.56657017,0.00037799,2]
[313044817,1706687253069,-10163.5709,0.000378,2]
[313044818,1706687253090,-5776.7570312,0.000378,2]
[313044825,1706687431951,-155.0,0.00035643,2]
[313044826,1706687431961,-158.19,0.00035644,2]
[313044827,1706687431970,-182.19,0.00037539,10]
[313044828,1706687431981,-250.0,0.00037575,2]
[313044829,1706687431992,-153.02,0.000377,3]
[313044830,1706687432001,-153.02,0.000377,3]
[313044831,1706687432010,-153.02,0.000377,3]
[313044832,1706687432020,-153.02,0.000377,3]
[313044833,1706687432031,-150.0,0.00037799,2]
[313044834,1706687432040,-9881.9138688,0.000378,2]
[313044835,1706687432050,-500.0,0.000378,2]
[313044836,1706687432059,-593.2,0.00037845,2]
[313044837,1706687432069,-151.0131,0.00037848,6]
[313044838,1706687432078,-2000.0,0.00037877,2]
[313044839,1706687432087,-1471.63719974,0.00037896,4]
[313044840,1706687432104,-952.6482658,0.00037896,4]